fUSD/lending_fUSD_20250103
["ID","MTS","AMOUNT","RATE_DAILY","PERIOD"]
[347571581,1735920685563,-5947.433718,0.00012367,2]
[347571582,1735920685573,-20623.83048494,0.00012398,2]
[347571583,1735920685582,-74237.79067506,0.00012399,2]
[347571584,1735920685592,-665520.71038447,0.00012399,2]
[347571585,1735920686032,-328.726308,0.00012329,2]
[347571586,1735920686041,-19676.948892,0.00012399,2]
[347571587,1735920686081,-823.375,0.00012399,2]
[347571588,1735920686093,-22957.09999998,0.00012399,2]
[347571589,1735920686103,-16571.50000005,0.00012399,2]
[347571590,1735920686114,-14969.1181576,0.00012399,2]
[347571591,1735920686124,-9811.1874505,0.00012399,2]
[347571592,1735920686306,-818.50145328,0.00012399,2]
[347571593,1735920686318,-895.69523688,0.00012399,2]
[347571594,1735920686541,-500.0,9.316e-05,2]
[347571595,1735920686551,-500.0,9.316e-05,2]
[347571596,1735920686561,-500.0,9.317e-05,2]
[347571597,1735920686570,-500.0,9.591e-05,2]
[347571598,1735920686580,-410.44,9.865e-05,2]
[347571599,1735920686590,-328.726308,0.00012329,2]
[347571600,1735920686610,-328.726308,0.00012329,2]
[347571601,1735920686620,-328.726308,0.00012333,2]
[347571602,1735920686629,-1640.53138632,0.00012399,2]
[347571603,1735920686641,-683.665,0.00012399,2]
[347571604,1735920686653,-7812.48,0.00012399,2]
[347571605,1735920686665,-3583.4,0.00012399,2]
[347571606,1735920686693,-432.0,9.59e-05,2]
[347571607,1735920686706,-68.0,9.59e-05,2]
[347571608,1735920686716,-79361.42782047,0.00012399,2]
[347571609,1735920686727,-18017.202,0.00012399,2]
[347571610,1735920686739,-627.08350276,0.00012399,2]
[347571611,1735920686750,-23745.02649297,0.00012399,2]
[347571612,1735920686762,-766.93914391,0.00012399,2]
[347571613,1735920686773,-981.05947864,0.00012399,2]
[347571614,1735920687086,-345.1035626,9.104e-05,2]
[347571615,1735920687099,-2154.8964374,9.104e-05,2]
[347571616,1735920687108,-310.34035729,9.316e-05,2]
[347571617,1735920687119,-189.65964271,9.316e-05,2]
[347571618,1735920687129,-500.0,9.316e-05,2]
[347571619,1735920687139,-635.76,9.317e-05,2]
[347571620,1735920687148,-500.0,9.317e-05,2]
[347571621,1735920687158,-500.0,9.317e-05,2]
[347571622,1735920687168,-329.25,9.59e-05,2]
[347571623,1735920687178,-280.06,9.59e-05,2]
[347571624,1735920687188,-500.0,9.591e-05,2]
[347571625,1735920687198,-238.52035229,9.864e-05,2]
[347571626,1735920687211,-29.34964771,9.864e-05,2]
[347571627,1735920687221,-6137.41845119,0.000109,2]
[347571628,1735920687230,-328.726308,0.00012329,2]
[347571629,1735920687244,-328.726308,0.00012329,2]
[347571630,1735920687254,-328.726308,0.00012329,2]
[347571631,1735920687263,-49926.61557057,0.00012399,2]
[347571632,1735920687313,-531.41457158,0.00012399,2]
[347571633,1735920687326,-3104.46502004,0.00012399,2]
[347571634,1735920687354,-266.34815154,0.00012399,2]
[347571635,1735920687394,-8297.81488646,0.00012399,2]
[347571636,1735920687406,-1098.0,0.00012399,2]
[347571642,1735920990824,150.0,0.00019255,120]
[347571643,1735921050766,150.0,0.00019971,120]
[347571644,1735921110857,150.0,0.00019725,120]
[347571645,1735921111819,159.0,0.00012399,30]
[347571646,1735921112102,159.0,0.00012904,30]
[347571648,1735921203388,160.0,0.00012399,30]
[347571649,1735921203716,158.0,0.00012399,30]
[347571650,1735921230953,150.0,0.00018162,120]
[347571651,1735921290782,150.0,0.00019607,120]
[347571652,1735921350765,150.0,0.00019311,120]
[347571653,1735921503693,160.0,0.00012399,30]
[347571654,1735921503976,215.0,0.00012399,30]
[347571655,1735921504332,215.0,0.00012904,30]
[347571666,1735921645261,195.0,0.00012399,30]
[347571667,1735921646272,195.0,0.00012904,30]
[347571668,1735921650812,150.0,0.00016999,120]
[347571677,1735921802942,160.0,0.00012399,30]
[347571678,1735921802973,194.0,0.00012399,30]
[347571679,1735921803310,194.0,0.00012904,30]
[347571688,1735921835209,-1029.53,8.219e-05,2]
[347571689,1735921835219,-570.25,8.446e-05,2]
[347571690,1735921835229,-441.36239736,8.505e-05,2]
[347571691,1735921835239,-250.0,8.505e-05,2]
[347571692,1735921835249,-174.98,8.575e-05,2]
[347571693,1735921835259,-250.0,8.575e-05,2]
[347571694,1735921835268,-441.36239734,8.575e-05,2]
[347571695,1735921835278,-250.49,8.615e-05,2]
[347571696,1735921835288,-1000.0,8.662e-05,2]
[347571697,1735921835298,-250.0,8.845e-05,2]
[347571698,1735921835307,-234.5252053,9e-05,2]
[347571699,1735921835319,-2029.77750465,9e-05,2]
[347571700,1735921835330,-961.67907138,9e-05,2]
[347571701,1735921835341,-1090.52064337,9e-05,2]
[347571702,1735921835391,-5802.87014825,9e-05,2]
[347571703,1735921835400,-498.38,9.134e-05,2]
[347571704,1735921835410,-494.18,9.204e-05,2]
[347571705,1735921835420,-503.2,9.204e-05,2]
[347571706,1735921835429,-501.39,9.204e-05,2]
[347571707,1735921835441,-509.52,9.204e-05,2]
[347571708,1735921835452,-505.15,9.204e-05,2]
[347571709,1735921835462,-503.29,9.204e-05,2]
[347571710,1735921835471,-495.27,9.204e-05,2]
[347571711,1735921835481,-498.04,9.204e-05,2]
[347571712,1735921835490,-504.5,9.204e-05,2]
[347571713,1735921835499,-502.25,9.204e-05,2]
[347571714,1735921835509,-260.18,9.204e-05,2]
[347571715,1735921835518,-490.16,9.218e-05,2]
[347571716,1735921835528,-2363.0,9.218e-05,2]
[347571717,1735921835539,-490.26,9.232e-05,2]
[347571718,1735921835548,-496.43,9.26e-05,2]
[347571719,1735921835557,-200.0,9.276e-05,2]
[347571720,1735921835568,-500.62,9.316e-05,2]
[347571721,1735921835577,-500.0,9.316e-05,2]
[347571722,1735921835586,-500.0,9.316e-05,2]
[347571723,1735921835596,-500.0,9.316e-05,2]
[347571724,1735921835605,-500.0,9.316e-05,2]
[347571725,1735921835615,-500.0,9.316e-05,2]
[347571726,1735921835624,-853.95,9.316e-05,2]
[347571727,1735921835634,-500.0,9.316e-05,2]
[347571728,1735921835643,-500.0,9.316e-05,2]
[347571729,1735921835652,-500.0,9.316e-05,2]
[347571730,1735921835662,-500.0,9.316e-05,2]
[347571731,1735921835671,-500.0,9.316e-05,2]
[347571733,1735921835680,-500.0,9.316e-05,2]
[347571735,1735921835689,-500.0,9.316e-05,2]
[347571736,1735921835699,-500.0,9.316e-05,2]
[347571737,1735921835708,-176.53720328,9.316e-05,2]
[347571738,1735921835717,-500.0,9.316e-05,2]
[347571739,1735921835726,-500.0,9.316e-05,2]
[347571741,1735921835735,-500.0,9.316e-05,2]
[347571743,1735921835745,-1012.88,9.316e-05,2]
[347571745,1735921835756,-500.0,9.316e-05,2]
[347571747,1735921835766,-500.0,9.316e-05,2]
[347571749,1735921835775,-500.0,9.316e-05,2]
[347571751,1735921835785,-500.0,9.316e-05,2]
[347571753,1735921835795,-573.55,9.316e-05,2]
[347571755,1735921835806,-500.0,9.316e-05,2]
[347571757,1735921835816,-2015.34,9.316e-05,2]
[347571759,1735921835825,-500.0,9.316e-05,2]
[347571761,1735921835835,-500.0,9.316e-05,2]
[347571763,1735921835844,-1719.7,9.316e-05,2]
[347571765,1735921835853,-500.0,9.316e-05,2]
[347571766,1735921835865,-500.0,9.316e-05,2]
[347571768,1735921835878,-330.58765877,9.316e-05,2]
[347571770,1735921835887,-500.0,9.316e-05,2]
[347571772,1735921835898,-401.07447389,9.316e-05,2]
[347571774,1735921835908,-500.0,9.316e-05,2]
[347571776,1735921835917,-500.0,9.316e-05,2]
[347571778,1735921835926,-500.0,9.316e-05,2]
[347571780,1735921835935,-500.0,9.316e-05,2]
[347571782,1735921835945,-557.05,9.316e-05,2]
[347571784,1735921835954,-500.0,9.316e-05,2]
[347571786,1735921835964,-500.0,9.316e-05,2]
[347571788,1735921835973,-500.0,9.316e-05,2]
[347571790,1735921835982,-500.0,9.316e-05,2]
[347571792,1735921835992,-2849.79,9.316e-05,2]
[347571794,1735921836001,-500.0,9.316e-05,2]
[347571796,1735921836011,-500.0,9.316e-05,2]
[347571798,1735921836020,-500.0,9.316e-05,2]
[347571800,1735921836030,-500.0,9.316e-05,2]
[347571803,1735921836042,-500.0,9.316e-05,2]
[347571805,1735921836051,-500.0,9.316e-05,2]
[347571807,1735921836060,-500.0,9.316e-05,2]
[347571809,1735921836069,-500.0,9.316e-05,2]
[347571811,1735921836078,-1995.29,9.316e-05,2]
[347571812,1735921836087,-500.0,9.316e-05,2]
[347571813,1735921836096,-670.73,9.316e-05,2]
[347571814,1735921836105,-500.0,9.316e-05,2]
[347571815,1735921836114,-842.12,9.316e-05,2]
[347571816,1735921836123,-884.35,9.316e-05,2]
[347571817,1735921836132,-494.79,9.317e-05,2]
[347571818,1735921836141,-500.0,9.317e-05,2]
[347571819,1735921836151,-500.0,9.317e-05,2]
[347571820,1735921836160,-500.0,9.317e-05,2]
[347571821,1735921836170,-554.32,9.317e-05,2]
[347571822,1735921836179,-500.0,9.317e-05,2]
[347571823,1735921836188,-500.0,9.317e-05,2]
[347571824,1735921836198,-500.0,9.317e-05,2]
[347571825,1735921836207,-500.0,9.317e-05,2]
[347571826,1735921836216,-500.0,9.317e-05,2]
[347571827,1735921836226,-500.0,9.317e-05,2]
[347571829,1735921836235,-500.0,9.317e-05,2]
[347571831,1735921836244,-500.0,9.317e-05,2]
[347571833,1735921836253,-500.0,9.317e-05,2]
[347571835,1735921836263,-500.0,9.317e-05,2]
[347571837,1735921836272,-500.0,9.317e-05,2]
[347571839,1735921836281,-500.0,9.317e-05,2]
[347571841,1735921836292,-500.0,9.317e-05,2]
[347571843,1735921836302,-500.0,9.317e-05,2]
[347571845,1735921836311,-500.0,9.317e-05,2]
[347571847,1735921836321,-500.0,9.317e-05,2]
[347571849,1735921836330,-500.0,9.317e-05,2]
[347571851,1735921836339,-500.0,9.317e-05,2]
[347571853,1735921836348,-500.0,9.317e-05,2]
[347571855,1735921836357,-641.8,9.317e-05,2]
[347571857,1735921836366,-500.0,9.317e-05,2]
[347571859,1735921836375,-1402.62,9.317e-05,2]
[347571861,1735921836388,-1909.87,9.317e-05,2]
[347571863,1735921836397,-1909.87,9.317e-05,2]
[347571865,1735921836406,-2299.56,9.317e-05,2]
[347571867,1735921836414,-500.0,9.317e-05,2]
[347571869,1735921836423,-500.0,9.317e-05,2]
[347571871,1735921836436,-500.0,9.317e-05,2]
[347571873,1735921836446,-500.0,9.317e-05,2]
[347571875,1735921836455,-2021.04,9.317e-05,2]
[347571877,1735921836463,-500.0,9.317e-05,2]
[347571879,1735921836472,-500.0,9.317e-05,2]
[347571881,1735921836483,-500.0,9.318e-05,2]
[347571882,1735921836492,-512.5,9.318e-05,2]
[347571884,1735921836503,-1000.0,9.318e-05,2]
[347571886,1735921836512,-500.0,9.318e-05,2]
[347571888,1735921836521,-500.0,9.318e-05,2]
[347571890,1735921836530,-788.04,9.318e-05,2]
[347571892,1735921836541,-1033.89,9.318e-05,2]
[347571895,1735921836550,-500.0,9.319e-05,2]
[347571897,1735921836560,-500.0,9.319e-05,2]
[347571898,1735921836569,-584.11,9.319e-05,2]
[347571900,1735921836579,-500.0,9.319e-05,2]
[347571903,1735921836588,-500.0,9.319e-05,2]
[347571904,1735921836598,-500.0,9.319e-05,2]
[347571906,1735921836607,-500.0,9.319e-05,2]
[347571909,1735921836617,-500.0,9.319e-05,2]
[347571911,1735921836627,-150.0,9.319e-05,2]
[347571913,1735921836636,-500.0,9.319e-05,2]
[347571914,1735921836645,-500.0,9.319e-05,2]
[347571916,1735921836655,-535.3,9.319e-05,2]
[347571919,1735921836664,-500.0,9.319e-05,2]
[347571921,1735921836673,-500.0,9.319e-05,2]
[347571922,1735921836683,-500.0,9.319e-05,2]
[347571924,1735921836692,-500.0,9.319e-05,2]
[347571926,1735921836701,-500.0,9.319e-05,2]
[347571928,1735921836710,-500.0,9.319e-05,2]
[347571930,1735921836719,-961.38,9.319e-05,2]
[347571932,1735921836728,-951.38,9.319e-05,2]
[347571934,1735921836737,-1041.75,9.319e-05,2]
[347571936,1735921836746,-500.0,9.319e-05,2]
[347571938,1735921836755,-500.0,9.319e-05,2]
[347571940,1735921836764,-500.0,9.319e-05,2]
[347571942,1735921836773,-500.0,9.319e-05,2]
[347571944,1735921836782,-743.52,9.319e-05,2]
[347571946,1735921836791,-500.0,9.319e-05,2]
[347571948,1735921836801,-500.0,9.468e-05,2]
[347571950,1735921836810,-500.0,9.468e-05,2]
[347571952,1735921836819,-1127.61,9.468e-05,2]
[347571954,1735921836828,-227.0,9.496e-05,2]
[347571956,1735921836838,-500.0,9.589e-05,2]
[347571958,1735921836847,-500.0,9.589e-05,2]
[347571960,1735921836856,-500.0,9.589e-05,2]
[347571962,1735921836865,-500.0,9.589e-05,2]
[347571964,1735921836874,-500.0,9.589e-05,2]
[347571966,1735921836885,-500.0,9.589e-05,2]
[347571968,1735921836894,-500.0,9.589e-05,2]
[347571970,1735921836903,-500.0,9.589e-05,2]
[347571972,1735921836912,-500.0,9.589e-05,2]
[347571974,1735921836921,-500.0,9.589e-05,2]
[347571976,1735921836930,-500.0,9.589e-05,2]
[347571978,1735921836939,-500.0,9.589e-05,2]
[347571980,1735921836948,-500.0,9.589e-05,2]
[347571982,1735921836957,-644.25,9.589e-05,2]
[347571984,1735921836966,-548.57,9.589e-05,2]
[347571986,1735921836975,-500.0,9.589e-05,2]
[347571988,1735921836984,-500.0,9.589e-05,2]
[347571990,1735921836993,-603.78,9.589e-05,2]
[347571992,1735921837002,-500.0,9.589e-05,2]
[347571994,1735921837011,-500.0,9.589e-05,2]
[347571996,1735921837025,-500.0,9.589e-05,2]
[347571998,1735921837039,-511.92,9.589e-05,2]
[347572000,1735921837048,-500.0,9.589e-05,2]
[347572002,1735921837057,-500.0,9.589e-05,2]
[347572004,1735921837066,-500.0,9.589e-05,2]
[347572006,1735921837076,-500.0,9.589e-05,2]
[347572008,1735921837085,-500.0,9.589e-05,2]
[347572010,1735921837094,-500.0,9.589e-05,2]
[347572012,1735921837103,-500.0,9.589e-05,2]
[347572014,1735921837112,-500.0,9.589e-05,2]
[347572016,1735921837121,-500.0,9.589e-05,2]
[347572018,1735921837130,-500.0,9.589e-05,2]
[347572020,1735921837139,-500.0,9.589e-05,2]
[347572022,1735921837149,-500.0,9.589e-05,2]
[347572024,1735921837158,-500.0,9.589e-05,2]
[347572026,1735921837167,-500.0,9.589e-05,2]
[347572028,1735921837176,-500.0,9.589e-05,2]
[347572030,1735921837185,-500.0,9.589e-05,2]
[347572032,1735921837195,-500.0,9.589e-05,2]
[347572034,1735921837204,-500.0,9.589e-05,2]
[347572036,1735921837213,-515.48,9.589e-05,2]
[347572038,1735921837223,-629.06,9.589e-05,2]
[347572040,1735921837232,-500.0,9.589e-05,2]
[347572042,1735921837241,-500.0,9.589e-05,2]
[347572044,1735921837251,-500.0,9.589e-05,2]
[347572046,1735921837260,-500.0,9.589e-05,2]
[347572048,1735921837269,-500.0,9.589e-05,2]
[347572050,1735921837278,-500.0,9.589e-05,2]
[347572052,1735921837288,-533.693064,9.589e-05,2]
[347572054,1735921837298,-959.27,9.589e-05,2]
[347572056,1735921837307,-500.0,9.589e-05,2]
[347572058,1735921837316,-153.754165,9.589e-05,2]
[347572060,1735921837325,-500.0,9.589e-05,2]
[347572062,1735921837335,-155.826198,9.589e-05,2]
[347572064,1735921837344,-500.0,9.589e-05,2]
[347572066,1735921837353,-1044.990237,9.589e-05,2]
[347572068,1735921837361,-500.0,9.589e-05,2]
[347572070,1735921837371,-500.0,9.589e-05,2]
[347572072,1735921837380,-500.0,9.589e-05,2]
[347572074,1735921837389,-500.0,9.589e-05,2]
[347572076,1735921837398,-500.0,9.589e-05,2]
[347572077,1735921837407,-500.0,9.589e-05,2]
[347572079,1735921837416,-500.0,9.589e-05,2]
[347572082,1735921837426,-1315.34,9.589e-05,2]
[347572083,1735921837435,-643.81,9.589e-05,2]
[347572085,1735921837446,-500.0,9.589e-05,2]
[347572087,1735921837458,-468.13552149,9.589e-05,2]
[347572091,1735921837483,-31.86447851,9.589e-05,2]
[347572093,1735921837493,-500.0,9.589e-05,2]
[347572095,1735921837503,-500.0,9.589e-05,2]
[347572097,1735921837513,-500.0,9.589e-05,2]
[347572099,1735921837523,-508.09,9.589e-05,2]
[347572101,1735921837533,-500.0,9.589e-05,2]
[347572104,1735921837546,-500.0,9.589e-05,2]
[347572105,1735921837555,-541.58,9.589e-05,2]
[347572107,1735921837566,-500.0,9.589e-05,2]
[347572110,1735921837576,-500.0,9.589e-05,2]
[347572112,1735921837586,-500.0,9.589e-05,2]
[347572114,1735921837597,-500.0,9.589e-05,2]
[347572116,1735921837607,-500.0,9.589e-05,2]
[347572117,1735921837618,-500.0,9.589e-05,2]
[347572120,1735921837628,-500.0,9.589e-05,2]
[347572122,1735921837638,-616.81115811,9.589e-05,2]
[347572124,1735921837651,-475.63884189,9.589e-05,2]
[347572126,1735921837660,-500.0,9.589e-05,2]
[347572128,1735921837670,-194.41115811,9.589e-05,2]
[347572130,1735921837681,-305.58884189,9.589e-05,2]
[347572132,1735921837690,-21.82204533,9.589e-05,2]
[347572136,1735921837716,-478.17795467,9.589e-05,2]
[347572138,1735921837725,-46.72676858,9.589e-05,2]
[347572140,1735921837736,-453.27323142,9.589e-05,2]
[347572142,1735921837745,-500.0,9.589e-05,2]
[347572144,1735921837757,-500.0,9.589e-05,2]
[347572146,1735921837767,-1027.33,9.589e-05,2]
[347572148,1735921837776,-500.0,9.589e-05,2]
[347572150,1735921837785,-500.0,9.589e-05,2]
[347572152,1735921837796,-500.0,9.589e-05,2]
[347572154,1735921837805,-549.1,9.589e-05,2]
[347572156,1735921837815,-500.0,9.589e-05,2]
[347572158,1735921837825,-607.18,9.589e-05,2]
[347572160,1735921837834,-738.17,9.589e-05,2]
[347572162,1735921837844,-500.0,9.589e-05,2]
[347572164,1735921837855,-500.0,9.589e-05,2]
[347572166,1735921837865,-500.0,9.589e-05,2]
[347572168,1735921837875,-500.0,9.589e-05,2]
[347572170,1735921837884,-500.0,9.589e-05,2]
[347572172,1735921837895,-190.69562949,9.589e-05,2]
[347572175,1735921837925,-309.30437051,9.589e-05,2]
[347572177,1735921837936,-500.0,9.589e-05,2]
[347572179,1735921837947,-500.0,9.589e-05,2]
[347572181,1735921837957,-591.86,9.589e-05,2]
[347572183,1735921837968,-500.0,9.589e-05,2]
[347572185,1735921837979,-500.0,9.589e-05,2]
[347572187,1735921837990,-1048.01,9.589e-05,2]
[347572189,1735921838000,-500.0,9.589e-05,2]
[347572191,1735921838011,-500.0,9.589e-05,2]
[347572193,1735921838021,-500.0,9.589e-05,2]
[347572196,1735921838033,-500.0,9.589e-05,2]
[347572199,1735921838047,-500.0,9.589e-05,2]
[347572201,1735921838057,-500.0,9.589e-05,2]
[347572203,1735921838066,-500.0,9.589e-05,2]
[347572205,1735921838076,-500.0,9.589e-05,2]
[347572207,1735921838085,-588.33,9.589e-05,2]
[347572209,1735921838095,-500.0,9.589e-05,2]
[347572211,1735921838104,-500.0,9.589e-05,2]
[347572213,1735921838113,-500.0,9.589e-05,2]
[347572215,1735921838123,-895.81,9.589e-05,2]
[347572217,1735921838132,-500.0,9.589e-05,2]
[347572219,1735921838141,-1466.37,9.589e-05,2]
[347572221,1735921838151,-500.0,9.589e-05,2]
[347572223,1735921838161,-867.5,9.589e-05,2]
[347572225,1735921838171,-500.0,9.589e-05,2]
[347572227,1735921838180,-500.0,9.589e-05,2]
[347572229,1735921838190,-553.12,9.589e-05,2]
[347572231,1735921838199,-500.0,9.589e-05,2]
[347572233,1735921838209,-500.0,9.589e-05,2]
[347572235,1735921838218,-500.0,9.589e-05,2]
[347572237,1735921838228,-500.0,9.589e-05,2]
[347572239,1735921838237,-500.0,9.589e-05,2]
[347572241,1735921838246,-500.0,9.589e-05,2]
[347572243,1735921838255,-500.0,9.589e-05,2]
[347572245,1735921838265,-500.0,9.589e-05,2]
[347572247,1735921838274,-938.38,9.589e-05,2]
[347572249,1735921838283,-683.76,9.589e-05,2]
[347572251,1735921838295,-500.0,9.589e-05,2]
[347572253,1735921838305,-500.0,9.589e-05,2]
[347572255,1735921838314,-338.93843726,9.589e-05,2]
[347572256,1735921838323,-500.0,9.589e-05,2]
[347572258,1735921838332,-500.0,9.589e-05,2]
[347572260,1735921838342,-500.0,9.589e-05,2]
[347572262,1735921838352,-500.0,9.589e-05,2]
[347572265,1735921838361,-500.0,9.59e-05,2]
[347572266,1735921838371,-500.0,9.59e-05,2]
[347572268,1735921838380,-500.0,9.59e-05,2]
[347572270,1735921838390,-500.0,9.59e-05,2]
[347572272,1735921838399,-500.0,9.59e-05,2]
[347572274,1735921838409,-500.0,9.59e-05,2]
[347572276,1735921838418,-853.95,9.59e-05,2]
[347572278,1735921838428,-500.0,9.59e-05,2]
[347572280,1735921838438,-500.0,9.59e-05,2]
[347572282,1735921838447,-500.0,9.59e-05,2]
[347572284,1735921838456,-585.2,9.59e-05,2]
[347572286,1735921838465,-295.05,9.59e-05,2]
[347572288,1735921838474,-500.0,9.59e-05,2]
[347572290,1735921838484,-500.0,9.59e-05,2]
[347572292,1735921838493,-500.0,9.59e-05,2]
[347572294,1735921838503,-500.0,9.59e-05,2]
[347572296,1735921838512,-500.0,9.59e-05,2]
[347572298,1735921838522,-500.0,9.59e-05,2]
[347572300,1735921838533,-500.0,9.59e-05,2]
[347572302,1735921838545,-500.0,9.59e-05,2]
[347572304,1735921838554,-1012.88,9.59e-05,2]
[347572306,1735921838564,-463.32037018,9.59e-05,2]
[347572308,1735921838574,-514.4,9.59e-05,2]
[347572310,1735921838584,-500.0,9.59e-05,2]
[347572312,1735921838594,-500.0,9.59e-05,2]
[347572314,1735921838603,-573.55,9.59e-05,2]
[347572316,1735921838612,-500.0,9.59e-05,2]
[347572318,1735921838622,-500.0,9.59e-05,2]
[347572320,1735921838632,-500.0,9.59e-05,2]
[347572322,1735921838642,-500.0,9.59e-05,2]
[347572324,1735921838652,-2015.34,9.59e-05,2]
[347572343,1735921838862,-500.0,9.59e-05,2]
[347572344,1735921838872,-500.0,9.59e-05,2]
[347572345,1735921838881,-500.0,9.59e-05,2]
[347572346,1735921838891,-500.0,9.59e-05,2]
[347572347,1735921838900,-500.0,9.59e-05,2]
[347572348,1735921838909,-500.0,9.59e-05,2]
[347572349,1735921838918,-1719.7,9.59e-05,2]
[347572350,1735921838927,-500.0,9.59e-05,2]
[347572351,1735921838936,-500.0,9.59e-05,2]
[347572352,1735921838945,-500.0,9.59e-05,2]
[347572354,1735921838954,-500.0,9.59e-05,2]
[347572356,1735921838964,-576.04,9.59e-05,2]
[347572358,1735921838974,-500.0,9.59e-05,2]
[347572360,1735921838984,-500.0,9.59e-05,2]
[347572362,1735921838994,-500.0,9.59e-05,2]
[347572364,1735921839005,-500.0,9.59e-05,2]
[347572366,1735921839016,-500.0,9.59e-05,2]
[347572368,1735921839026,-557.05,9.59e-05,2]
[347572370,1735921839036,-500.0,9.59e-05,2]
[347572372,1735921839049,-500.0,9.59e-05,2]
[347572374,1735921839058,-500.0,9.59e-05,2]
[347572376,1735921839068,-500.0,9.59e-05,2]
[347572378,1735921839078,-500.0,9.59e-05,2]
[347572380,1735921839087,-500.0,9.59e-05,2]
[347572382,1735921839096,-500.0,9.59e-05,2]
[347572384,1735921839105,-2849.79,9.59e-05,2]
[347572386,1735921839114,-237.65,9.59e-05,2]
[347572388,1735921839124,-500.0,9.59e-05,2]
[347572390,1735921839132,-500.0,9.59e-05,2]
[347572392,1735921839141,-500.0,9.59e-05,2]
[347572394,1735921839150,-500.0,9.59e-05,2]
[347572396,1735921839159,-500.0,9.59e-05,2]
[347572398,1735921839169,-154.45454748,9.59e-05,2]
[347572400,1735921839178,-500.0,9.59e-05,2]
[347572402,1735921839187,-500.0,9.59e-05,2]
[347572404,1735921839196,-500.0,9.59e-05,2]
[347572406,1735921839205,-500.0,9.59e-05,2]
[347572408,1735921839214,-560.21,9.59e-05,2]
[347572410,1735921839223,-500.0,9.59e-05,2]
[347572412,1735921839233,-500.0,9.59e-05,2]
[347572414,1735921839242,-500.0,9.59e-05,2]
[347572416,1735921839251,-500.0,9.59e-05,2]
[347572417,1735921839261,-500.0,9.59e-05,2]
[347572419,1735921839270,-500.0,9.59e-05,2]
[347572421,1735921839280,-500.0,9.59e-05,2]
[347572423,1735921839292,-500.0,9.59e-05,2]
[347572425,1735921839303,-1995.29,9.59e-05,2]
[347572427,1735921839313,-500.0,9.59e-05,2]
[347572429,1735921839323,-500.0,9.59e-05,2]
[347572431,1735921839333,-670.73,9.59e-05,2]
[347572433,1735921839343,-500.0,9.59e-05,2]
[347572435,1735921839352,-500.0,9.59e-05,2]
[347572437,1735921839361,-842.12,9.59e-05,2]
[347572439,1735921839370,-884.35,9.59e-05,2]
[347572441,1735921839380,-491.93,9.59e-05,2]
[347572443,1735921839389,-500.0,9.591e-05,2]
[347572445,1735921839399,-557.2,9.591e-05,2]
[347572447,1735921839409,-594.61,9.591e-05,2]
[347572449,1735921839418,-266.51,9.591e-05,2]
[347572451,1735921839428,-500.0,9.591e-05,2]
[347572453,1735921839437,-1402.62,9.591e-05,2]
[347572455,1735921839447,-1909.87,9.591e-05,2]
[347572457,1735921839456,-637.62429876,9.591e-05,2]
[347572461,1735921839484,-1272.24570124,9.591e-05,2]
[347572463,1735921839494,-2299.56,9.591e-05,2]
[347572465,1735921839503,-500.0,9.591e-05,2]
[347572467,1735921839513,-235.61285686,9.591e-05,2]
[347572469,1735921839525,-264.38714314,9.591e-05,2]
[347572471,1735921839534,-500.0,9.591e-05,2]
[347572473,1735921839546,-500.0,9.591e-05,2]
[347572475,1735921839556,-2021.04,9.591e-05,2]
[347572477,1735921839566,-500.0,9.591e-05,2]
[347572479,1735921839576,-500.0,9.591e-05,2]
[347572481,1735921839585,-500.0,9.592e-05,2]
[347572483,1735921839595,-512.5,9.592e-05,2]
[347572485,1735921839605,-184.82621783,9.592e-05,2]
[347572487,1735921839616,-815.17378217,9.592e-05,2]